fUSD/lending_fUSD_20250407
["ID","MTS","AMOUNT","RATE_DAILY","PERIOD"]
[357304275,1744002631743,-826.42,0.00018811,2]
[357304276,1744002631752,-826.42,0.00018816,2]
[357304277,1744002631762,-826.42,0.00018821,2]
[357304278,1744002631772,-300.0,0.00018825,2]
[357304279,1744002631782,-826.42,0.00018826,2]
[357304280,1744002631792,-826.42,0.00018831,2]
[357304281,1744002631802,-826.42,0.00018836,2]
[357304282,1744002631811,-826.42,0.00018841,2]
[357304283,1744002631821,-826.42,0.00018846,2]
[357304284,1744002631831,-826.42,0.00018851,2]
[357304285,1744002631840,-568.36577012,0.00018856,2]
[357304286,1744002631945,-258.05422988,0.00018856,2]
[357304287,1744002631954,-826.42,0.0001886,2]
[357304288,1744002631963,-826.42,0.00018865,2]
[357304289,1744002631973,-500.0,0.00018867,2]
[357304290,1744002631982,-826.42,0.0001887,2]
[357304291,1744002631991,-500.0,0.000189,2]
[357304292,1744002632000,-500.0,0.000189,2]
[357304293,1744002632010,-4737.37,0.00018906,2]
[357304294,1744002632019,-200.0,0.00018987,2]
[357304295,1744002632028,-255.0,0.00019006,2]
[357304296,1744002632038,-158.21,0.00019024,2]
[357304298,1744002632047,-1613.68,0.00019101,2]
[357304300,1744002632057,-1797.86,0.00019134,2]
[357304302,1744002632067,-2158.19,0.00019147,2]
[357304304,1744002632076,-797.9,0.00019183,2]
[357304306,1744002632085,-200.0,0.00019244,7]
[357304308,1744002632096,-1008.1416128,0.00019399,2]
[357304310,1744002632106,-17836.33415732,0.00019416,2]
[357304350,1744002637611,-289.5758038,0.00019416,2]
[357304351,1744002637908,-149.41990919,0.00019416,2]
[357304352,1744002637949,-5624.67012969,0.00019416,2]
[357304353,1744002637959,-1000.0,0.0001945,2]
[357304354,1744002637969,-150.5,0.00019751,2]
[357304355,1744002637979,-200.0,0.00019753,2]
[357304356,1744002637989,-1000.0,0.000198,2]
[357304357,1744002637998,-12445.39,0.00019823,2]
[357304358,1744002638007,-877.83,0.00019836,2]
[357304359,1744002638017,-505.81749924,0.00019873,2]
[357304360,1744002638026,-510.34914585,0.00019873,2]
[357304362,1744002638036,-500.0,0.00019873,2]
[357304364,1744002638045,-5766.83,0.00019885,2]
[357304366,1744002638055,-154.87,0.00019885,2]
[357304368,1744002638064,-500.0,0.0001989,2]
[357304370,1744002638073,-1250.058,0.00019899,2]
[357304372,1744002638083,-10734.836,0.000199,2]
[357304374,1744002638092,-30876.8032,0.000199,2]
[357304376,1744002638104,-185.1394571,0.000199,2]
[357304378,1744002638114,-968.6679,0.000199,2]
[357304380,1744002638123,-210.0793,0.000199,2]
[357304382,1744002638138,-3822.5386,0.000199,2]
[357304384,1744002638148,-265.8536,0.000199,2]
[357304386,1744002638157,-161.09892695,0.000199,2]
[357304389,1744002638167,-159.95478019,0.000199,2]
[357304392,1744002638178,-158.0584,0.000199,2]
[357304395,1744002638187,-752.3615,0.000199,2]
[357304399,1744002638197,-1012.0,0.000199,2]
[357304402,1744002638207,-2487.49557445,0.000199,2]
[357304405,1744002638217,-749.97,0.000199,2]
[357304408,1744002638227,-2943.623956,0.000199,2]
[357304411,1744002638238,-1240.0342,0.000199,2]
[357304413,1744002638247,-215.43677212,0.000199,2]
[357304415,1744002638256,-725.02246975,0.000199,2]
[357304417,1744002638266,-2760.83854308,0.000199,2]
[357304419,1744002638276,-503.58895932,0.00019973,2]
[357304421,1744002638285,-500.0,0.00019973,2]
[357304423,1744002638295,-158.9901535,0.00019973,2]
[357304425,1744002638304,-500.0,0.00019973,2]
[357304427,1744002638314,-500.0,0.00019973,2]
[357304429,1744002638323,-7175.81976392,0.0001999,2]
[357304430,1744002638336,-717.66754355,0.0001999,2]
[357304432,1744002638345,-255.14829989,0.0001999,2]
[357304434,1744002638357,-255.14829989,0.0001999,2]
[357304436,1744002638367,-488.47454167,0.00019999,5]
[357304438,1744002638382,-384.3839996,0.00019999,5]
[357304610,1744002640021,-171.65267592,0.000199,2]
[357304612,1744002640031,-180.87173694,0.00019999,5]
[357304614,1744002640040,-798.47173393,0.0002,2]
[357304616,1744002640051,-1086.52826607,0.0002,2]
[357304618,1744002640060,-65.45573393,0.0002,2]
[357304622,1744002640081,-310.0,0.0002,2]
[357304634,1744002640200,-401.479008,0.0002,2]
[357304636,1744002640211,-1224.17978389,0.0002,2]
[357304642,1744002640257,-629.28774287,0.0002,2]
[357304767,1744002644589,-18972.21234899,0.0002,2]
[357304805,1744002645708,-46195.00559999,0.0002,2]
[357304806,1744002645720,-23132.2,0.0002,2]
[357304807,1744002645768,-64918.11481853,0.0002,2]
[357304808,1744002645779,-2625.05922819,0.0002,2]
[357304809,1744002645890,-3841.35,0.0002,2]
[357304810,1744002645902,-329.49999993,0.0002,2]
[357304818,1744002979718,170.27,0.00013699,2]
[357304819,1744003033366,254.37,0.00032932,120]
[357304820,1744003320499,150.0,0.00032,120]
[357304821,1744003515218,64743.84526796,0.00039619,30]
[357304822,1744003520896,380.40475,9e-05,2]
[357304823,1744003520920,83.43908389,9e-05,2]
[357304824,1744003529301,846.95217153,0.00011,2]
[357304825,1744003537185,278.41413673,0.00039619,30]
[357304826,1744003537735,1869.04046924,8e-05,2]
[357304830,1744003644255,5145.87322294,0.0001305,2]
[357304831,1744003677152,4261.60701438,0.00013,2]
[357304832,1744003678958,406.99424373,0.00039619,30]
[357304833,1744003680211,7919.33925232,0.0001,2]
[357304835,1744003690449,210.51267938,9.5e-05,2]
[357304836,1744003699531,-1809.26035655,0.00015,2]
[357304837,1744003699562,-8065.78081696,0.00015,2]
[357304838,1744003699610,-3872.82474626,0.00015,2]
[357304839,1744003699646,-9875.04117351,0.00015,2]
[357304840,1744003702840,296.11606434,0.000125,2]
[357304841,1744003702870,1000.0,0.000135,2]
[357304842,1744003717893,1681.9903113,9.828e-05,2]
[357304843,1744003719450,215.72845171,0.0001,2]
[357304844,1744003721557,-3237.00416082,0.000149,2]
[357304845,1744003724454,-212.68134828,0.00014999,2]
[357304846,1744003724489,-10134.8179671,0.00015,2]
[357304847,1744003724599,-10347.49931538,0.00015,2]
[357304848,1744003724632,-724.54874436,0.00015,2]
[357304850,1744003727763,356.45817956,0.000162,45]
[357304851,1744003730453,150.0,0.00039619,30]
[357304854,1744003749466,-10775.89026288,0.00015,2]
[357304855,1744003749652,-10278.72670928,0.00015,2]
[357304862,1744003775191,-11196.98260233,0.00015,2]
[357304863,1744003775252,-11042.13738254,0.00015,2]
[357304868,1744003799756,-11641.76500202,0.00015,2]
[357304869,1744003799814,-11641.76500202,0.00015,2]
[357304870,1744003799895,-4648.23241774,0.00015,2]
[357304911,1744003832583,-150.0,0.00014999,2]
[357304913,1744003832600,-300.0,0.00014999,2]
[357304915,1744003832610,-250.0,0.00015,2]
[357304917,1744003832620,-10204.15802534,0.00015,2]
[357304919,1744003832633,-8217.59609124,0.00015,2]
[357304920,1744003832644,-5984.5947902,0.00015,2]
[357304921,1744003832656,-6127.228,0.00015,2]
[357304922,1744003832667,-3253.93499041,0.00015,2]
[357304923,1744003832698,-307.20846208,0.00015,2]
[357304924,1744003832787,-12248.43460584,0.00015,2]
[357304925,1744003832799,-159562.74882465,0.00015,2]
[357304926,1744003832808,-250.0,0.00016007,2]
[357304927,1744003832817,-255.0,0.00016124,2]
[357304928,1744003832827,-420.0,0.00016416,2]
[357304929,1744003832839,-250.0,0.00016499,2]
[357304930,1744003832848,-407.0462116,0.00016907,2]
[357304931,1744003832858,-785.03,0.00017007,2]
[357304932,1744003832867,-407.04621153,0.0001724,2]
[357304933,1744003832876,-503.0,0.00017315,2]
[357304934,1744003832886,-250.0,0.00017452,2]
[357304935,1744003832895,-407.04621153,0.00017572,2]
[357304936,1744003832905,-407.04621153,0.00017905,2]
[357304937,1744003832914,-587.0,0.00017966,2]
[357304938,1744003832923,-212.96432669,0.000181,2]
[357304939,1744003832933,-407.04621153,0.00018237,2]
[357304940,1744003832942,-1000.0,0.00018333,2]
[357304941,1744003832952,-300.0,0.00018472,2]
[357304942,1744003832961,-407.04621153,0.0001857,2]
[357304943,1744003832970,-250.0,0.00018848,2]
[357304944,1744003832980,-407.04621153,0.00018902,2]
[357304945,1744003832989,-250.0,0.00019,2]
[357304946,1744003833000,-172.70620128,0.00019,2]
[357304947,1744003833009,-938.02,0.00019091,2]
[357304948,1744003833019,-200.0,0.00019219,7]
[357304949,1744003833028,-407.04621153,0.00019235,2]
[357304950,1744003833038,-785.03,0.00019271,2]
[357304951,1744003833048,-794.5188045,0.00019399,2]
[357304952,1744003833058,-1016.122,0.00019516,2]
[357304953,1744003833068,-407.04621153,0.00019567,2]
[357304954,1744003833078,-579.0,0.00019663,2]
[357304955,1744003833090,-23900.0,0.00019697,2]
[357304956,1744003833099,-195.36,0.00019719,2]
[357304957,1744003833109,-152.63,0.0001974,2]
[357304958,1744003833120,-200.0,0.00019827,2]
[357304959,1744003833130,-500.0,0.00019873,2]
[357304960,1744003833139,-500.0,0.00019873,2]
[357304961,1744003833149,-502.20816352,0.00019873,2]
[357304962,1744003833158,-507.02176259,0.00019889,2]
[357304963,1744003833168,-10876.42032937,0.0001989,2]
[357304969,1744003837835,-26902.27307063,0.0001989,2]
[357304970,1744003837845,-352.7265,0.000199,2]
[357304971,1744003837855,-256.4154,0.000199,2]
[357304972,1744003837864,-575.4658,0.000199,2]
[357304973,1744003837873,-183.85532578,0.000199,2]
[357304974,1744003837883,-10281.0672,0.000199,2]
[357304975,1744003837892,-437.3953,0.000199,2]
[357304976,1744003837902,-733.1855,0.000199,2]
[357304977,1744003837911,-161.09892695,0.000199,2]
[357304978,1744003837922,-116.51697664,0.000199,2]
[357304979,1744003838064,-290.52923489,0.000199,2]
[357304980,1744003838074,-2393.15413121,0.000199,2]
[357304981,1744003838086,-1799.9,0.000199,2]
[357304982,1744003838107,-306.36026879,0.000199,2]
[357304983,1744003838117,-97.23367509,0.000199,2]
[357305122,1744003840096,-1743.32535363,0.000199,2]
[357305123,1744003840106,-373.03415205,0.00019973,2]
[357305124,1744003840337,-126.96584795,0.00019973,2]
[357305125,1744003840348,-500.0,0.00019973,2]
[357305126,1744003840358,-375.05944344,0.00019973,2]
[357305127,1744003840368,-124.94055656,0.00019973,2]
[357305128,1744003840378,-794.12535477,0.00019973,2]
[357305129,1744003840389,-312.35564523,0.00019973,2]
[357305130,1744003840398,-255.1482999,0.0001999,2]
[357305131,1744003840407,-6714.8787742,0.00019995,2]
[357305132,1744003840417,-905.01723661,0.00019995,2]
[357305151,1744003843535,-4846.92952699,0.00019995,2]
[357305152,1744003843548,-9392.3308668,0.00019995,2]
[357305153,1744003843557,-1546.1121306,0.00019995,2]
[357305154,1744003843567,-1000.0,0.00019999,2]
[357305155,1744003843578,-1597.0,0.0002,2]
[357305156,1744003843588,-282540.99661232,0.0002,2]
[357305159,1744003924038,674.03517,0.0002,23]
[357305160,1744003924090,674.03518,0.00025,23]
[357305161,1744003940446,173.66,0.00027069,120]
[357305162,1744003940655,173.66,0.00032483,120]
[357305163,1744004027883,-616.90905932,0.000329,30]
[357305164,1744004027909,-476.62625248,0.000329,30]
[357305165,1744004027937,-237.83667558,0.000329,30]
[357305166,1744004027964,-1498.0,0.000332,120]
[357305167,1744004027996,-200.0,0.00034,120]
[357305168,1744004028026,-2914.8968374,0.00035,40]
[357305169,1744004028058,-207.61,0.00035,30]
[357305170,1744004028086,-163548.18233998,0.0003511,30]
[357305171,1744004028121,-200.0,0.00036,120]
[357305172,1744004028149,-669.85139627,0.000365,120]
[357305173,1744004028181,-2381.49202912,0.000372,103]
[357305174,1744004028209,-2381.49202908,0.000372,103]
[357305175,1744004028238,-2381.49202908,0.000372,103]
[357305176,1744004028267,-2381.49202908,0.000372,103]
[357305177,1744004028296,-168.314216,0.00037318,30]
[357305178,1744004028325,-254.37,0.0003741,120]
[357305179,1744004028588,-151.95805675,0.00037999,120]
[357305180,1744004028620,-200.0,0.00038,120]
[357305181,1744004028651,-5037.0,0.00038,30]
[357305182,1744004028684,-501.93,0.00038249,60]
[357305183,1744004028713,-500.0,0.00038356,90]
[357305184,1744004028741,-500.0,0.00038356,90]
[357305185,1744004028770,-500.0,0.00038356,90]
[357305186,1744004028797,-500.0,0.00038356,90]
[357305187,1744004028824,-500.0,0.00038356,90]
[357305188,1744004028852,-500.0,0.00038356,90]
[357305189,1744004028878,-500.0,0.00038356,90]
[357305190,1744004028904,-500.0,0.00038356,90]
[357305191,1744004028929,-500.0,0.00038356,90]
[357305192,1744004028955,-500.0,0.00038356,90]
[357305193,1744004028981,-500.0,0.00038356,90]
[357305194,1744004029011,-500.0,0.00038356,90]
[357305195,1744004029040,-500.0,0.00038356,90]
[357305196,1744004029068,-500.0,0.00038356,90]
[357305197,1744004029095,-500.0,0.00038356,90]
[357305198,1744004029123,-500.0,0.00038356,90]
[357305199,1744004029151,-482.87010244,0.00038356,90]
[357305200,1744004029180,-500.0,0.00039,120]
[357305201,1744004029208,-500.0,0.00039,120]
[357305202,1744004029236,-1500.0,0.00039,35]
[357305203,1744004029262,-1000.0,0.00039,30]
[357305204,1744004029288,-631.19844847,0.00039,30]
[357305205,1744004029315,-400.0,0.00039,30]
[357305206,1744004029341,-486.59908835,0.00039,30]
[357305207,1744004029368,-293.55765719,0.00039299,120]
[357305208,1744004029393,-211.98,0.000393,30]
[357305209,1744004029418,-162.6,0.000394,30]
[357305210,1744004029442,-150.0,0.00039446,120]
[357305211,1744004029468,-410.56,0.00039446,30]
[357305212,1744004029496,-456.801771,0.00039452,30]
[357305213,1744004029524,-2381.49202908,0.00039519,117]
[357305214,1744004029550,-504.296285,0.000396,30]
[357305215,1744004029577,-1129364.21816362,0.00039619,30]
[357305216,1744004029605,-1646.0,0.00039619,30]
[357305217,1744004029631,-9099.6351831,0.00039629,30]
[357305218,1744004029666,-1000.0,0.00039644,30]
[357305219,1744004029693,-1000.0,0.00039644,30]
[357305220,1744004029719,-1000.0,0.00039644,30]
[357305221,1744004029748,-1000.0,0.00039644,30]
[357305222,1744004029776,-1000.0,0.00039644,30]
[357305223,1744004029803,-2000.0,0.00039644,30]
[357305224,1744004029831,-2000.0,0.00039644,30]
[357305225,1744004029857,-2000.0,0.00039644,30]
[357305226,1744004029884,-2000.0,0.00039644,30]
[357305227,1744004029911,-2000.0,0.00039644,30]
[357305228,1744004029941,-1107.5485595,0.0003985,120]
[357305229,1744004029969,-200.0,0.0004,120]
[357305230,1744004030000,-194.80770791,0.0004,30]
[357305231,1744004030028,-69176.59902441,0.0004,30]
[357305232,1744004030056,-1292.50557536,0.00040789,120]
[357305233,1744004030083,-180.41,0.0004107,120]
[357305234,1744004030110,-239.0,0.0004107,120]
[357305235,1744004030137,-150.5,0.0004108,120]
[357305236,1744004030164,-239.0,0.0004108,120]
[357305237,1744004030191,-150.5,0.0004109,120]
[357305238,1744004030217,-239.0,0.0004109,120]
[357305239,1744004030249,-500.0,0.00041096,31]
[357305240,1744004030276,-500.0,0.00041096,31]
[357305241,1744004030304,-500.0,0.00041096,31]
[357305242,1744004030331,-500.0,0.00041096,31]
[357305243,1744004030356,-500.0,0.00041096,31]
[357305244,1744004030382,-500.0,0.00041096,31]
[357305245,1744004030408,-500.0,0.00041096,31]
[357305246,1744004030434,-500.0,0.00041096,31]
[357305247,1744004030460,-500.0,0.00041096,31]
[357305248,1744004030487,-500.0,0.00041096,31]
[357305249,1744004030512,-500.0,0.00041096,31]
[357305250,1744004030539,-500.0,0.00041096,31]
[357305251,1744004030565,-500.0,0.00041096,31]
[357305252,1744004030592,-500.0,0.00041096,31]
[357305253,1744004030621,-500.0,0.00041096,31]
[357305254,1744004030646,-500.0,0.00041096,31]
[357305255,1744004030673,-500.0,0.00041096,31]
[357305256,1744004030699,-536.40909192,0.00041096,31]
[357305257,1744004030724,-536.40909192,0.00041096,31]
[357305258,1744004030751,-536.40909192,0.00041096,31]
[357305259,1744004030777,-536.40909192,0.00041096,31]
[357305260,1744004030804,-536.40909192,0.00041096,31]
[357305261,1744004030830,-536.40909192,0.00041096,31]
[357305262,1744004030857,-536.40909192,0.00041096,31]
[357305263,1744004030884,-536.40909192,0.00041096,31]
[357305264,1744004030910,-536.40909192,0.00041096,31]
[357305265,1744004030938,-254.37,0.00041888,120]
[357305266,1744004030966,-200.0,0.00041894,120]
[357305267,1744004030999,-285.38435921,0.00042,120]
[357305268,1744004031025,-175.04,0.00042,120]
[357305269,1744004031052,-803.45,0.00042,120]
[357305270,1744004031078,-255.07,0.00042,120]
[357305271,1744004031105,-292.07,0.00042,120]
[357305272,1744004031309,-1106.481,0.0004248,64]
[357305273,1744004031338,-1092.8648262,0.000425,60]
[357305274,1744004031365,-1066.0,0.00042558,30]
[357305275,1744004031392,-338.25,0.00043,30]
[357305276,1744004031419,-200.0,0.00043128,120]
[357305277,1744004031446,-159.0,0.00043151,90]
[357305278,1744004031472,-263.88,0.00043835,120]
[357305279,1744004031500,-181.43381983,0.000439,120]
[357305280,1744004031533,-1573.45,0.000443,36]
[357305281,1744004031564,-1573.45,0.000443,36]
[357305282,1744004031596,-1573.45,0.000443,36]
[357305283,1744004031625,-1573.45,0.000443,36]
[357305284,1744004031657,-1573.45,0.000443,36]
[357305285,1744004031690,-1573.45,0.000443,36]
[357305286,1744004031721,-1573.45,0.000443,36]
[357305287,1744004031757,-1573.45,0.000443,36]
[357305288,1744004031787,-1573.45,0.000443,36]
[357305289,1744004031816,-1573.45,0.000443,36]
[357305290,1744004031846,-1573.45,0.000443,36]
[357305291,1744004031874,-1573.45,0.000443,36]
[357305292,1744004031898,-364.647922,0.00044361,120]
[357305293,1744004031922,-200.0,0.00044361,120]
[357305294,1744004031947,-200.0,0.000444,120]
[357305295,1744004031971,-1066.0,0.00044798,30]
[357305296,1744004031999,-229.6293017,0.000448,120]
[357305297,1744004032025,-210.0,0.0004492,30]
[357305298,1744004032051,-10000.0,0.00045,120]
[357305299,1744004032077,-151.0,0.00045,120]
[357305300,1744004032104,-150.0,0.00045,85]
[357305301,1744004032131,-1097.07421527,0.00045,120]
[357305302,1744004032157,-151.0,0.00045,120]
[357305303,1744004032182,-1000.0,0.00045,120]
[357305304,1744004032207,-4996.07486156,0.00045,120]
[357305305,1744004032233,-162.0,0.00045308,90]
[357305306,1744004032263,-3382.32545155,0.00045679,120]
[357305307,1744004032290,-168.314216,0.0004606,60]
[357305308,1744004032317,-200.0,0.00046324,120]
[357305309,1744004032343,-254.37,0.00046366,120]
[357305310,1744004032369,-1000.0,0.00046408,120]
[357305311,1744004032396,-2000.0,0.00046575,120]
[357305312,1744004032423,-169.06016129,0.00046603,120]
[357305313,1744004032449,-169.06016129,0.00046795,120]
[357305314,1744004032475,-814.46231751,0.00046798,53]
[357305315,1744004032503,-210.0,0.0004685,30]
[357305316,1744004032530,-169.06016129,0.00046986,120]
[357305317,1744004032556,-1066.0,0.00047156,30]
[357305318,1744004032583,-169.06016129,0.00047178,120]
[357305319,1744004032612,-169.06016129,0.0004737,120]
[357305320,1744004032638,-238.040713,0.00047498,120]
[357305321,1744004032665,-740.0,0.000475,120]
[357305322,1744004032693,-154.216,0.00047534,30]
[357305323,1744004032720,-169.06016129,0.00047534,120]
[357305324,1744004032746,-169.06016129,0.00047726,120]
[357305325,1744004032772,-304.52678704,0.00047816,120]
[357305326,1744004032798,-1000.0,0.0004788,120]
[357305327,1744004032824,-169.06016129,0.00047918,120]
[357305328,1744004032849,-2000.0,0.00047945,120]
[357305329,1744004032875,-66974.4100313,0.00048,120]
[357305330,1744004032901,-500.0,0.00048,120]
[357305331,1744004032927,-6101.0,0.00048,120]
[357305332,1744004032953,-301.3215284,0.00048,120]
[357305333,1744004032981,-169.06016129,0.0004811,120]
[357305334,1744004033007,-200.0,0.00048287,120]
[357305335,1744004033035,-169.06016129,0.00048301,120]
[357305336,1744004033062,-200.0,0.000484,120]
[357305337,1744004033091,-169.06016129,0.00048493,120]
[357305338,1744004033117,-500.0,0.00048493,120]
[357305339,1744004033143,-169.06016129,0.00048658,120]
[357305340,1744004033171,-500.0,0.00048767,120]
[357305341,1744004033197,-500.0,0.00048767,120]
[357305342,1744004033223,-500.0,0.00048767,120]
[357305343,1744004033251,-645.36989508,0.00048767,120]
[357305344,1744004033279,-500.0,0.00048767,120]
[357305345,1744004033312,-500.0,0.00048767,120]
[357305346,1744004033339,-500.0,0.00048767,120]
[357305347,1744004033365,-500.0,0.00048767,120]
[357305348,1744004033397,-500.0,0.00048767,120]
[357305349,1744004033427,-500.0,0.00048767,120]
[357305350,1744004033455,-500.0,0.00048767,120]
[357305351,1744004033485,-500.0,0.00048767,120]
[357305352,1744004033515,-500.0,0.00048767,120]
[357305353,1744004033544,-375.17658576,0.00048767,120]
[357305354,1744004033572,-500.0,0.00048767,120]
[357305355,1744004033602,-500.0,0.00048767,120]
[357305356,1744004033630,-500.0,0.00048767,120]
[357305357,1744004033656,-500.0,0.00048767,120]
[357305358,1744004033684,-500.0,0.00048767,120]
[357305359,1744004033711,-500.0,0.00048767,120]
[357305360,1744004033741,-500.0,0.00048767,120]
[357305361,1744004033768,-500.0,0.00048767,120]
[357305362,1744004033795,-312.62361003,0.00048767,120]
[357305363,1744004033822,-500.0,0.00048767,120]
[357305364,1744004033850,-500.0,0.00048767,120]
[357305365,1744004033879,-500.0,0.00048767,120]
[357305366,1744004033908,-500.0,0.00048767,120]
[357305367,1744004034110,-210.0,0.0004878,30]
[357305368,1744004034139,-1513.2208189,0.0004879,30]
[357305369,1744004034167,-156.25597256,0.000488,120]
[357305370,1744004034194,-2071.32340769,0.000488,120]
[357305371,1744004034220,-3172.50177522,0.000488,120]
[357305372,1744004034247,-550.71,0.000489,120]
[357305373,1744004034273,-144216.0,0.00048987,120]
[357305374,1744004034297,-248.9863816,0.00049,120]
[357305375,1744004034322,-500.0,0.00049,120]
[357305376,1744004034349,-500.0,0.00049,120]
[357305377,1744004034376,-500.0,0.00049,120]
[357305378,1744004034402,-500.0,0.00049,120]
[357305379,1744004034428,-500.0,0.00049,120]
[357305380,1744004034455,-500.0,0.00049,120]
[357305381,1744004034480,-313.0,0.00049,120]
[357305382,1744004034506,-395.47412355,0.00049,120]
[357305383,1744004034532,-529.73996092,0.00049,60]
[357305384,1744004034557,-540.092746,0.00049,120]
[357305385,1744004034583,-150.0,0.00049,77]
[357305386,1744004034610,-207.0,0.00049,120]
[357305387,1744004034635,-918.28169265,0.00049,30]
[357305388,1744004034662,-271.0,0.000493,120]
[357305389,1744004034693,-1607.14,0.00049315,120]
[357305390,1744004034720,-500.0,0.00049315,120]
[357305391,1744004034747,-2000.0,0.00049315,120]
[357305392,1744004034772,-313.402132,0.00049315,120]
[357305393,1744004034798,-179.902466,0.00049315,120]
[357305394,1744004034824,-217.835496,0.00049315,120]
[357305395,1744004034852,-3193.986782,0.00049315,120]
[357305396,1744004034879,-660.523371,0.00049315,120]
[357305397,1744004034905,-311.64387266,0.00049315,120]
[357305398,1744004034931,-500.0,0.00049315,120]
[357305399,1744004034957,-500.0,0.00049315,120]
[357305400,1744004034984,-500.0,0.00049315,120]
[357305401,1744004035012,-500.0,0.00049315,120]
[357305402,1744004035040,-499.98494665,0.00049315,120]
[357305403,1744004035065,-500.0,0.00049315,120]
[357305404,1744004035091,-429.72722732,0.00049315,120]
[357305405,1744004035116,-500.0,0.00049315,120]
[357305406,1744004035142,-500.0,0.00049315,120]
[357305407,1744004035168,-507.6704574,0.00049315,120]
[357305408,1744004035194,-509.8081222,0.00049315,120]
[357305409,1744004035219,-2000.0,0.00049315,30]
[357305410,1744004035245,-500.0,0.00049315,120]
[357305411,1744004035271,-500.0,0.00049315,120]
[357305412,1744004035297,-561.26736494,0.00049315,120]
[357305413,1744004035325,-500.0,0.00049315,120]
[357305414,1744004035354,-506.85113499,0.00049315,120]
[357305415,1744004035380,-500.0,0.00049315,120]
[357305416,1744004035407,-500.0,0.00049315,120]
[357305417,1744004035434,-505.74161713,0.00049315,120]
[357305418,1744004035460,-899.06,0.00049315,120]
[357305419,1744004035487,-500.0,0.00049315,120]
[357305420,1744004035515,-500.0,0.00049315,120]
[357305421,1744004035541,-559.37,0.00049315,120]
[357305422,1744004035567,-500.0,0.00049315,120]
[357305423,1744004035596,-511.18947852,0.00049315,120]
[357305424,1744004035623,-521.11891355,0.00049315,120]
[357305425,1744004035652,-500.0,0.00049315,120]
[357305426,1744004035679,-500.0,0.00049315,120]
[357305427,1744004035706,-500.0,0.00049315,120]
[357305428,1744004035733,-500.0,0.00049315,120]
[357305429,1744004035761,-500.0,0.00049315,120]
[357305430,1744004035788,-500.0,0.00049315,120]
[357305431,1744004035814,-500.0,0.00049315,120]
[357305432,1744004035839,-500.0,0.00049315,120]
[357305433,1744004035865,-500.0,0.00049315,120]
[357305434,1744004035891,-500.0,0.00049315,120]
[357305435,1744004035917,-500.0,0.00049315,120]
[357305436,1744004035943,-500.0,0.00049315,120]
[357305437,1744004035969,-500.0,0.00049315,120]
[357305438,1744004035996,-500.0,0.00049315,120]
[357305439,1744004036027,-500.0,0.00049315,120]
[357305440,1744004036055,-500.0,0.00049315,120]
[357305441,1744004036081,-500.0,0.00049315,120]
[357305442,1744004036109,-500.0,0.00049315,120]
[357305443,1744004036135,-554.94,0.00049315,120]
[357305444,1744004036162,-500.0,0.00049315,120]
[357305445,1744004036189,-500.0,0.00049315,120]
[357305446,1744004036216,-500.0,0.00049315,120]
[357305447,1744004036242,-500.0,0.00049315,120]
[357305448,1744004036269,-500.0,0.00049315,120]
[357305449,1744004036296,-500.0,0.00049315,120]
[357305450,1744004036322,-500.0,0.00049315,120]